[Event "Early-Titled-Tuesday-Blitz-February-20-2024"]
[Site "Chess.com"]
[Date "2024.02.20"]
[Round "6"]
[White "koncheto"]
[Black "arnash_bauyrzhan"]
[Result "1-0"]
[WhiteElo "2418"]
[BlackElo "2261"]
[TimeControl "180+1"]
[EndTime "9:11:22 PST"]
[Termination "koncheto won on time"]

1. e4 {[%clk 0:03:00.9]} 1... c5 {[%clk 0:02:58.9]} 2. Nf3 {[%clk 0:03:01]} 2...
e6 {[%clk 0:02:58.7]} 3. d4 {[%clk 0:02:57.5]} 3... cxd4 {[%clk 0:02:59.1]} 4.
Nxd4 {[%clk 0:02:58.4]} 4... a6 {[%clk 0:02:59.5]} 5. c4 {[%clk 0:02:56]} 5...
Nf6 {[%clk 0:02:59]} 6. Nc3 {[%clk 0:02:40.3]} 6... Bb4 {[%clk 0:02:57.7]} 7.
Qd3 {[%clk 0:02:35.3]} 7... Qc7 {[%clk 0:02:55.4]} 8. Be2 {[%clk 0:02:32]} 8...
Bxc3+ {[%clk 0:02:48.7]} 9. Qxc3 {[%clk 0:02:31.4]} 9... d6 {[%clk 0:02:46.3]}
10. f3 {[%clk 0:02:22.9]} 10... e5 {[%clk 0:02:46.3]} 11. Nc2 {[%clk 0:02:22.5]}
11... Be6 {[%clk 0:02:46.4]} 12. O-O {[%clk 0:02:18.2]} 12... Nbd7 {[%clk
0:02:46.2]} 13. b3 {[%clk 0:01:45.6]} 13... b5 {[%clk 0:02:39.3]} 14. Ne3 {[%clk
0:01:45.7]} 14... bxc4 {[%clk 0:02:38.4]} 15. Bxc4 {[%clk 0:01:43.9]} 15... O-O
{[%clk 0:02:33]} 16. Bb2 {[%clk 0:01:41.4]} 16... Rac8 {[%clk 0:02:25.5]} 17.
Qd2 {[%clk 0:01:32.4]} 17... Bxc4 {[%clk 0:01:30.5]} 18. Nxc4 {[%clk 0:01:29.2]}
18... Qc5+ {[%clk 0:01:30.6]} 19. Kh1 {[%clk 0:01:28.6]} 19... d5 {[%clk
0:01:28.6]} 20. Ba3 {[%clk 0:01:17.5]} 20... Qd4 {[%clk 0:01:01.4]} 21. Qxd4
{[%clk 0:01:02.4]} 21... exd4 {[%clk 0:01:01.2]} 22. Nd6 {[%clk 0:01:00.2]}
22... Rc2 {[%clk 0:00:37.6]} 23. Nf5 {[%clk 0:00:51.6]} 23... Re8 {[%clk
0:00:24.7]} 24. Ne7+ {[%clk 0:00:40.6]} 24... Kh8 {[%clk 0:00:22.3]} 25. Nxd5
{[%clk 0:00:39.2]} 25... Nxd5 {[%clk 0:00:20.4]} 26. exd5 {[%clk 0:00:40.1]}
26... Ree2 {[%clk 0:00:12.7]} 27. Rae1 {[%clk 0:00:20.3]} 27... d3 {[%clk
0:00:12.2]} 28. Rxe2 {[%clk 0:00:17.5]} 28... Rxe2 {[%clk 0:00:11]} 29. Bb4
{[%clk 0:00:11.2]} 29... Rxa2 {[%clk 0:00:08.8]} 30. h4 {[%clk 0:00:08.5]} 30...
h6 {[%clk 0:00:06.1]} 31. Rd1 {[%clk 0:00:08.4]} 31... Ne5 {[%clk 0:00:04.3]}
32. d6 {[%clk 0:00:07.5]} 32... Rb2 {[%clk 0:00:03.2]} 33. Rxd3 {[%clk
0:00:03.8]} 33... Nd7 {[%clk 0:00:03.4]} 34. Rc3 {[%clk 0:00:02.9]} 34... Kh7
{[%clk 0:00:03.4]} 35. Rc7 {[%clk 0:00:03]} 35... Rb1+ {[%clk 0:00:04]} 36. Kh2
{[%clk 0:00:03.1]} 36... Nb6 {[%clk 0:00:04.4]} 37. Rc6 {[%clk 0:00:02.7]} 37...
Nd7 {[%clk 0:00:03.4]} 38. Rxa6 {[%clk 0:00:02.7]} 38... Rxb3 {[%clk 0:00:03.6]}
39. Bd2 {[%clk 0:00:02]} 39... Rd3 {[%clk 0:00:03.6]} 40. Bf4 {[%clk 0:00:02.6]}
40... Nc5 {[%clk 0:00:03.7]} 41. Ra7 {[%clk 0:00:03.5]} 41... Ne6 {[%clk
0:00:03.6]} 42. Rxf7 {[%clk 0:00:03.5]} 42... Nxf4 {[%clk 0:00:03.5]} 43. Rxf4
{[%clk 0:00:04.4]} 43... Rxd6 {[%clk 0:00:04]} 44. h5 {[%clk 0:00:04.8]} 44...
Rd5 {[%clk 0:00:03.8]} 45. g4 {[%clk 0:00:05.1]} 45... Rd3 {[%clk 0:00:03.6]}
46. Kg3 {[%clk 0:00:05.4]} 46... Kg8 {[%clk 0:00:03.9]} 47. Re4 {[%clk
0:00:05.5]} 47... Kf7 {[%clk 0:00:04.1]} 48. Kf4 {[%clk 0:00:06.1]} 48... Rd6
{[%clk 0:00:03.8]} 49. Rb4 {[%clk 0:00:05.2]} 49... Rf6+ {[%clk 0:00:03.6]} 50.
Kg3 {[%clk 0:00:05.3]} 50... Rc6 {[%clk 0:00:04.2]} 51. Rb3 {[%clk 0:00:05.4]}
51... Kf6 {[%clk 0:00:04.1]} 52. Re3 {[%clk 0:00:04.4]} 52... Kf7 {[%clk
0:00:04.4]} 53. Kf4 {[%clk 0:00:04.7]} 53... Rc4+ {[%clk 0:00:04.4]} 54. Re4
{[%clk 0:00:05]} 54... Rc6 {[%clk 0:00:04.9]} 55. Ke5 {[%clk 0:00:03.9]} 55...
Re6+ {[%clk 0:00:05]} 56. Kd5 {[%clk 0:00:04]} 56... Rb6 {[%clk 0:00:05.4]} 57.
f4 {[%clk 0:00:03.7]} 57... Rb5+ {[%clk 0:00:05.4]} 58. Kd4 {[%clk 0:00:04]}
58... Rb4+ {[%clk 0:00:05.6]} 59. Ke3 {[%clk 0:00:03.5]} 59... Rb3+ {[%clk
0:00:06.1]} 60. Kf2 {[%clk 0:00:04]} 60... Rb2+ {[%clk 0:00:06.2]} 61. Kf3
{[%clk 0:00:04.6]} 61... Rb3+ {[%clk 0:00:06.5]} 62. Re3 {[%clk 0:00:05.5]}
62... Rb1 {[%clk 0:00:06]} 63. f5 {[%clk 0:00:05.2]} 63... Rh1 {[%clk
0:00:04.8]} 64. Kf4 {[%clk 0:00:05]} 64... Rf1+ {[%clk 0:00:04.5]} 65. Ke5
{[%clk 0:00:05.1]} 65... Ra1 {[%clk 0:00:05.2]} 66. Rd3 {[%clk 0:00:03.8]} 66...
Ra4 {[%clk 0:00:05.2]} 67. Rd4 {[%clk 0:00:04.2]} 67... Ra5+ {[%clk 0:00:05]}
68. Kd6 {[%clk 0:00:03.8]} 68... Ra3 {[%clk 0:00:04.2]} 69. Kd7 {[%clk
0:00:01.8]} 69... Kf6 {[%clk 0:00:04]} 70. Ke8 {[%clk 0:00:01.7]} 70... Ra8+
{[%clk 0:00:03.3]} 71. Kd7 {[%clk 0:00:02]} 71... Ra7+ {[%clk 0:00:03.7]} 72.
Kc6 {[%clk 0:00:02]} 72... Ra6+ {[%clk 0:00:03.9]} 73. Kd5 {[%clk 0:00:02.4]}
73... Ra5+ {[%clk 0:00:03.7]} 74. Ke4 {[%clk 0:00:02.8]} 74... Ra1 {[%clk
0:00:04.1]} 75. Rd6+ {[%clk 0:00:03.1]} 75... Kf7 {[%clk 0:00:04.5]} 76. Rg6
{[%clk 0:00:03.5]} 76... Ra4+ {[%clk 0:00:04.3]} 77. Kf3 {[%clk 0:00:03.9]}
77... Ra3+ {[%clk 0:00:04.7]} 78. Ke4 {[%clk 0:00:04.3]} 78... Ra4+ {[%clk
0:00:05.2]} 79. Kd5 {[%clk 0:00:04.9]} 79... Ra5+ {[%clk 0:00:05.8]} 80. Kc6
{[%clk 0:00:05.5]} 80... Ra6+ {[%clk 0:00:06.1]} 81. Kd7 {[%clk 0:00:04]} 81...
Rxg6 {[%clk 0:00:05.6]} 82. hxg6+ {[%clk 0:00:04.3]} 82... Kf6 {[%clk 0:00:06]}
83. Ke8 {[%clk 0:00:04.9]} 83... h5 {[%clk 0:00:01.5]} 84. gxh5 {[%clk 0:00:04]}
84... Kxf5 {[%clk 0:00:01.9]} 85. Kf7 {[%clk 0:00:04.3]} 1-0

[Event "Early-Titled-Tuesday-Blitz-February-20-2024"]
[Site "Chess.com"]
[Date "2024.02.20"]
[Round "6"]
[White "s-dshubin"]
[Black "C_K_G"]
[Result "1/2-1/2"]
[WhiteElo "2356"]
[BlackElo "2169"]
[TimeControl "180+1"]
[EndTime "9:12:06 PST"]
[Termination "Game drawn - insufficient material"]

1. e4 {[%clk 0:03:00]} 1... c5 {[%clk 0:02:59.4]} 2. Nf3 {[%clk 0:02:49.3]} 2...
d6 {[%clk 0:02:59.3]} 3. d4 {[%clk 0:02:49.4]} 3... cxd4 {[%clk 0:03:00.2]} 4.
Nxd4 {[%clk 0:02:49.9]} 4... Nf6 {[%clk 0:03:00.8]} 5. Nc3 {[%clk 0:02:50.2]}
5... a6 {[%clk 0:03:01.3]} 6. Bg5 {[%clk 0:02:49.9]} 6... e6 {[%clk 0:03:01.7]}
7. f4 {[%clk 0:02:49.7]} 7... Nbd7 {[%clk 0:03:02]} 8. Qf3 {[%clk 0:02:50.1]}
8... Qc7 {[%clk 0:03:02.4]} 9. O-O-O {[%clk 0:02:49.2]} 9... b5 {[%clk
0:03:02.7]} 10. g4 {[%clk 0:02:49.7]} 10... Bb7 {[%clk 0:03:02.7]} 11. Bxf6
{[%clk 0:02:49.1]} 11... gxf6 {[%clk 0:02:55.7]} 12. g5 {[%clk 0:02:50]} 12...
f5 {[%clk 0:02:45.1]} 13. exf5 {[%clk 0:02:45.6]} 13... Bxf3 {[%clk 0:02:44]}
14. Nxf3 {[%clk 0:02:41.6]} 14... b4 {[%clk 0:02:40.5]} 15. Ne4 {[%clk
0:02:27.6]} 15... Rc8 {[%clk 0:02:37.8]} 16. Bd3 {[%clk 0:02:21.1]} 16... Nc5
{[%clk 0:02:36.6]} 17. Nxc5 {[%clk 0:02:16.8]} 17... Qxc5 {[%clk 0:02:37.5]} 18.
Rhe1 {[%clk 0:02:10.5]} 18... Kd7 {[%clk 0:02:20.7]} 19. fxe6+ {[%clk
0:01:59.9]} 19... fxe6 {[%clk 0:02:21.6]} 20. f5 {[%clk 0:01:55.3]} 20... Bg7
{[%clk 0:02:14.5]} 21. f6 {[%clk 0:01:50.1]} 21... Bf8 {[%clk 0:02:14.6]} 22.
Nd4 {[%clk 0:01:48.5]} 22... Re8 {[%clk 0:01:59.6]} 23. Bxa6 {[%clk 0:01:44.7]}
23... e5 {[%clk 0:01:49]} 24. Bb5+ {[%clk 0:01:43.7]} 24... Kd8 {[%clk
0:01:49.2]} 25. Bxe8 {[%clk 0:01:31.6]} 25... Kxe8 {[%clk 0:01:49.4]} 26. Ne6
{[%clk 0:01:27.4]} 26... Qb6 {[%clk 0:01:42.5]} 27. Nf4 {[%clk 0:01:10.4]} 27...
Kf7 {[%clk 0:01:40.6]} 28. Nd5 {[%clk 0:01:08.5]} 28... Qa5 {[%clk 0:01:39.5]}
29. Kb1 {[%clk 0:01:01.4]} 29... h6 {[%clk 0:01:38]} 30. h4 {[%clk 0:01:00.8]}
30... hxg5 {[%clk 0:01:38]} 31. hxg5 {[%clk 0:01:01.7]} 31... Rh2 {[%clk
0:01:34.2]} 32. Rg1 {[%clk 0:00:59.1]} 32... Qc5 {[%clk 0:01:29.6]} 33. g6+
{[%clk 0:00:56.8]} 33... Ke6 {[%clk 0:01:26.9]} 34. Rc1 {[%clk 0:00:46.4]} 34...
Qc8 {[%clk 0:00:29.4]} 35. g7 {[%clk 0:00:31.9]} 35... Bxg7 {[%clk 0:00:29.4]}
36. fxg7 {[%clk 0:00:32.8]} 36... Qg8 {[%clk 0:00:28.8]} 37. Rcf1 {[%clk
0:00:28.6]} 37... Kxd5 {[%clk 0:00:26]} 38. Rf8 {[%clk 0:00:19.2]} 38... Qxg7
{[%clk 0:00:23.4]} 39. c4+ {[%clk 0:00:17.5]} 39... bxc3 {[%clk 0:00:16.9]} 40.
Rxg7 {[%clk 0:00:15.9]} 40... Rxb2+ {[%clk 0:00:16]} 41. Ka1 {[%clk 0:00:15.4]}
41... Rd2 {[%clk 0:00:15.5]} 42. Rf1 {[%clk 0:00:15.1]} 42... Kd4 {[%clk
0:00:13.2]} 43. Rg4+ {[%clk 0:00:14.2]} 43... e4 {[%clk 0:00:13.5]} 44. Rc1
{[%clk 0:00:14.1]} 44... d5 {[%clk 0:00:13.7]} 45. Kb1 {[%clk 0:00:13.7]} 45...
Rb2+ {[%clk 0:00:12.4]} 46. Ka1 {[%clk 0:00:14.3]} 46... Kd3 {[%clk 0:00:11.4]}
47. a4 {[%clk 0:00:14.2]} 47... e3 {[%clk 0:00:10.4]} 48. a5 {[%clk 0:00:14.5]}
48... Rb5 {[%clk 0:00:10.3]} 49. Ra4 {[%clk 0:00:13.9]} 49... Rb8 {[%clk
0:00:10.1]} 50. Ra2 {[%clk 0:00:13.6]} 50... d4 {[%clk 0:00:11]} 51. Rd1+ {[%clk
0:00:13.5]} 51... Ke4 {[%clk 0:00:11]} 52. a6 {[%clk 0:00:13.7]} 52... d3 {[%clk
0:00:09.5]} 53. a7 {[%clk 0:00:14.1]} 53... Ra8 {[%clk 0:00:09.2]} 54. Ra4+
{[%clk 0:00:14.1]} 54... Kf3 {[%clk 0:00:08]} 55. Rxd3 {[%clk 0:00:14.3]} 55...
c2 {[%clk 0:00:08.4]} 56. Kb2 {[%clk 0:00:14]} 56... Rc8 {[%clk 0:00:07.7]} 57.
Ra1 {[%clk 0:00:10.9]} 57... Ke2 {[%clk 0:00:05.2]} 58. Rxe3+ {[%clk 0:00:10.8]}
58... Kxe3 {[%clk 0:00:05]} 59. Kc1 {[%clk 0:00:09.8]} 59... Ra8 {[%clk
0:00:04.7]} 60. Ra4 {[%clk 0:00:09.8]} 60... Kd3 {[%clk 0:00:04.1]} 61. Kb2
{[%clk 0:00:08.6]} 61... Kd2 {[%clk 0:00:04]} 62. Rd4+ {[%clk 0:00:05.8]} 62...
Ke3 {[%clk 0:00:04.2]} 63. Rd7 {[%clk 0:00:06.4]} 63... Rc8 {[%clk 0:00:01.5]}
64. Kc1 {[%clk 0:00:05.1]} 64... Ke4 {[%clk 0:00:02.1]} 65. Re7+ {[%clk
0:00:05]} 65... Kd5 {[%clk 0:00:02.2]} 66. Rb7 {[%clk 0:00:04.3]} 66... Ra8
{[%clk 0:00:01.1]} 67. Kxc2 {[%clk 0:00:04.1]} 67... Kc6 {[%clk 0:00:02]} 68.
Rg7 {[%clk 0:00:03]} 68... Kb6 {[%clk 0:00:02.9]} 69. Rg3 {[%clk 0:00:02]} 69...
Rc8+ {[%clk 0:00:03.1]} 70. Kb2 {[%clk 0:00:02.2]} 70... Ra8 {[%clk 0:00:04]}
71. Rb3+ {[%clk 0:00:02.8]} 71... Ka6 {[%clk 0:00:04.5]} 72. Ra3+ {[%clk
0:00:03.7]} 72... Kb7 {[%clk 0:00:04.8]} 73. Rb3+ {[%clk 0:00:04.6]} 73... Ka6
{[%clk 0:00:05.4]} 74. Ra3+ {[%clk 0:00:05.5]} 74... Kb6 {[%clk 0:00:05.9]} 75.
Rb3+ {[%clk 0:00:06.4]} 75... Kc7 {[%clk 0:00:06.8]} 76. Kc2 {[%clk 0:00:07.3]}
76... Kc6 {[%clk 0:00:06.1]} 77. Kd2 {[%clk 0:00:08.2]} 77... Kc7 {[%clk
0:00:06.3]} 78. Ra3 {[%clk 0:00:09.1]} 78... Rd8+ {[%clk 0:00:06.8]} 79. Kc3
{[%clk 0:00:10]} 79... Ra8 {[%clk 0:00:07.4]} 80. Ra4 {[%clk 0:00:10.7]} 80...
Kb7 {[%clk 0:00:08.2]} 81. Kc4 {[%clk 0:00:11.6]} 81... Rc8+ {[%clk 0:00:08.2]}
82. Kb5 {[%clk 0:00:11.9]} 82... Ra8 {[%clk 0:00:09.1]} 83. Rb4 {[%clk
0:00:12.3]} 83... Rxa7 {[%clk 0:00:08.1]} 84. Re4 {[%clk 0:00:11.6]} 84... Kc7
{[%clk 0:00:08.9]} 85. Re7+ {[%clk 0:00:11.7]} 85... Kb8 {[%clk 0:00:09.8]} 86.
Re8+ {[%clk 0:00:11.5]} 86... Kb7 {[%clk 0:00:09.5]} 87. Rh8 {[%clk 0:00:11.9]}
87... Ra1 {[%clk 0:00:07.2]} 88. Rh7+ {[%clk 0:00:12.4]} 88... Kc8 {[%clk
0:00:07.3]} 89. Kc6 {[%clk 0:00:12.9]} 89... Rc1+ {[%clk 0:00:07.6]} 90. Kd6
{[%clk 0:00:13.8]} 90... Kb8 {[%clk 0:00:07.8]} 91. Rh8+ {[%clk 0:00:11.4]}
91... Kb7 {[%clk 0:00:07.7]} 92. Rh7+ {[%clk 0:00:11.6]} 92... Kb6 {[%clk
0:00:07.8]} 93. Rh2 {[%clk 0:00:12.3]} 93... Rd1+ {[%clk 0:00:08.1]} 94. Ke5
{[%clk 0:00:13]} 94... Rb1 {[%clk 0:00:06]} 95. Kd4 {[%clk 0:00:13.1]} 95... Kb5
{[%clk 0:00:06]} 96. Kc3 {[%clk 0:00:13.4]} 96... Rc1+ {[%clk 0:00:05.6]} 97.
Kb2 {[%clk 0:00:13.5]} 97... Rc5 {[%clk 0:00:05.9]} 98. Rh3 {[%clk 0:00:13.6]}
98... Re5 {[%clk 0:00:04.1]} 99. Kb3 {[%clk 0:00:13.8]} 99... Rf5 {[%clk
0:00:03.7]} 100. Rd3 {[%clk 0:00:13.8]} 100... Re5 {[%clk 0:00:03.7]} 101. Rc3
{[%clk 0:00:14.3]} 101... Rf5 {[%clk 0:00:04.3]} 102. Kc2 {[%clk 0:00:15]}
102... Rg5 {[%clk 0:00:04.7]} 103. Rb3+ {[%clk 0:00:15.9]} 103... Kc5 {[%clk
0:00:04.5]} 104. Kb2 {[%clk 0:00:16.4]} 104... Rf5 {[%clk 0:00:04.2]} 105. Ka3
{[%clk 0:00:17]} 105... Rd5 {[%clk 0:00:03.8]} 106. Ka4 {[%clk 0:00:17.5]}
106... Rd4+ {[%clk 0:00:04.2]} 107. Ka5 {[%clk 0:00:18]} 107... Rd5 {[%clk
0:00:05.1]} 108. Rb5+ {[%clk 0:00:16.4]} 108... Kd6 {[%clk 0:00:06]} 109. Kb6
{[%clk 0:00:16.1]} 109... Rxb5+ {[%clk 0:00:06.2]} 110. Kxb5 {[%clk 0:00:17]}
1/2-1/2

[Event "Early-Titled-Tuesday-Blitz-February-20-2024"]
[Site "Chess.com"]
[Date "2024.02.20"]
[Round "7"]
[White "ImportedItalianMaple"]
[Black "mjelcic"]
[Result "1-0"]
[WhiteElo "2529"]
[BlackElo "2213"]
[TimeControl "180+1"]
[EndTime "9:14:20 PST"]
[Termination "ImportedItalianMaple won by checkmate"]

1. Nf3 {[%clk 0:03:00.9]} 1... b6 {[%clk 0:02:57.8]} 2. e4 {[%clk 0:03:00.4]}
2... Bb7 {[%clk 0:02:57.5]} 3. Nc3 {[%clk 0:03:00.7]} 3... g6 {[%clk 0:02:56.6]}
4. d4 {[%clk 0:02:58.3]} 4... Bg7 {[%clk 0:02:56.8]} 5. h4 {[%clk 0:02:58.4]}
5... h5 {[%clk 0:02:55.6]} 6. Bg5 {[%clk 0:02:56.7]} 6... d6 {[%clk 0:02:51.5]}
7. Bc4 {[%clk 0:02:56.1]} 7... Nd7 {[%clk 0:02:51.1]} 8. Qe2 {[%clk 0:02:52.4]}
8... Ngf6 {[%clk 0:02:50.8]} 9. e5 {[%clk 0:02:48.9]} 9... dxe5 {[%clk
0:02:51.7]} 10. dxe5 {[%clk 0:02:49.2]} 10... Ng4 {[%clk 0:02:39.3]} 11. e6
{[%clk 0:02:47.4]} 11... fxe6 {[%clk 0:02:22.5]} 12. Qxe6 {[%clk 0:02:47.3]}
12... Nde5 {[%clk 0:02:16.6]} 13. Nxe5 {[%clk 0:02:40.1]} 13... Nxe5 {[%clk
0:02:14.5]} 14. Rd1 {[%clk 0:02:36.2]} 14... Qc8 {[%clk 0:02:09.1]} 15. Qxe7#
{[%clk 0:02:36.4]} 1-0

[Event "Early-Titled-Tuesday-Blitz-February-20-2024"]
[Site "Chess.com"]
[Date "2024.02.20"]
[Round "7"]
[White "arnash_bauyrzhan"]
[Black "manipun1"]
[Result "0-1"]
[WhiteElo "2256"]
[BlackElo "2400"]
[TimeControl "180+1"]
[EndTime "9:14:28 PST"]
[Termination "manipun1 won by resignation"]

1. e4 {[%clk 0:03:00.9]} 1... d6 {[%clk 0:02:59.8]} 2. d4 {[%clk 0:03:00.3]}
2... Nf6 {[%clk 0:02:59]} 3. Bd3 {[%clk 0:02:59.6]} 3... e5 {[%clk 0:02:58.7]}
4. Nf3 {[%clk 0:02:59.3]} 4... Nc6 {[%clk 0:02:55.9]} 5. d5 {[%clk 0:02:56.1]}
5... Ne7 {[%clk 0:02:54.1]} 6. c4 {[%clk 0:02:55.7]} 6... Ng6 {[%clk 0:02:36]}
7. Nc3 {[%clk 0:02:55.2]} 7... Be7 {[%clk 0:02:35.9]} 8. O-O {[%clk 0:02:54.7]}
8... O-O {[%clk 0:02:34.7]} 9. Be3 {[%clk 0:02:50.6]} 9... Nh5 {[%clk
0:02:29.3]} 10. Nxe5 {[%clk 0:02:47.1]} 10... Nxe5 {[%clk 0:02:29.9]} 11. Qxh5
{[%clk 0:02:43]} 11... Nxd3 {[%clk 0:02:28.6]} 12. Rad1 {[%clk 0:02:32.2]} 12...
Nxb2 {[%clk 0:02:28]} 0-1

[Event "Early-Titled-Tuesday-Blitz-February-20-2024"]
[Site "Chess.com"]
[Date "2024.02.20"]
[Round "7"]
[White "N_I_Chess"]
[Black "Sjakkerntobi"]
[Result "1-0"]
[WhiteElo "2315"]
[BlackElo "2486"]
[TimeControl "180+1"]
[EndTime "9:14:46 PST"]
[Termination "N_I_Chess won by resignation"]

1. d4 {[%clk 0:02:18.7]} 1... d5 {[%clk 0:02:57.7]} 2. c4 {[%clk 0:02:00.8]}
2... e6 {[%clk 0:02:57.7]} 3. Nc3 {[%clk 0:01:59.6]} 3... c6 {[%clk 0:02:57.2]}
4. Bf4 {[%clk 0:01:55.3]} 4... dxc4 {[%clk 0:02:51.3]} 5. a4 {[%clk 0:01:54.4]}
5... Bb4 {[%clk 0:02:49.8]} 6. e3 {[%clk 0:01:54.4]} 6... b5 {[%clk 0:02:50.2]}
7. axb5 {[%clk 0:01:50.7]} 7... Nf6 {[%clk 0:02:40.3]} 8. bxc6 {[%clk
0:01:47.9]} 8... Nd5 {[%clk 0:02:40.6]} 9. c7 {[%clk 0:01:38.4]} 9... Nxc7
{[%clk 0:02:38.9]} 10. Qa4+ {[%clk 0:01:36]} 10... Nc6 {[%clk 0:02:36.5]} 1-0

[Event "Early-Titled-Tuesday-Blitz-February-20-2024"]
[Site "Chess.com"]
[Date "2024.02.20"]
[Round "7"]
[White "aldebaran52"]
[Black "Bkmzzzzz"]
[Result "0-1"]
[WhiteElo "2195"]
[BlackElo "2414"]
[TimeControl "180+1"]
[EndTime "9:15:18 PST"]
[Termination "Bkmzzzzz won by resignation"]

1. d4 {[%clk 0:02:59.9]} 1... d5 {[%clk 0:02:57.9]} 2. Nf3 {[%clk 0:02:58.2]}
2... Nf6 {[%clk 0:02:56.8]} 3. g3 {[%clk 0:02:57.3]} 3... e6 {[%clk 0:02:53.7]}
4. Bg2 {[%clk 0:02:57]} 4... Be7 {[%clk 0:02:54.4]} 5. O-O {[%clk 0:02:56.2]}
5... O-O {[%clk 0:02:55]} 6. c4 {[%clk 0:02:55.7]} 6... dxc4 {[%clk 0:02:48.2]}
7. Nc3 {[%clk 0:02:51.6]} 7... Nc6 {[%clk 0:02:47.2]} 8. e4 {[%clk 0:02:48.9]}
8... a6 {[%clk 0:02:46.4]} 9. a4 {[%clk 0:02:47.9]} 9... b6 {[%clk 0:02:43.5]}
10. e5 {[%clk 0:02:38.6]} 10... Nd5 {[%clk 0:02:42.6]} 11. Ne4 {[%clk
0:02:39.2]} 11... Bb7 {[%clk 0:02:39.7]} 12. Be3 {[%clk 0:02:27.1]} 12... b5
{[%clk 0:02:36.9]} 13. axb5 {[%clk 0:02:21.6]} 13... axb5 {[%clk 0:02:37.8]} 14.
Rxa8 {[%clk 0:02:21.1]} 14... Qxa8 {[%clk 0:02:36.9]} 15. Qc2 {[%clk 0:02:21.8]}
15... Ncb4 {[%clk 0:02:33.9]} 16. Qe2 {[%clk 0:02:14.8]} 16... Nxe3 {[%clk
0:02:28.9]} 17. Nfg5 {[%clk 0:01:51.6]} 17... Nxg2 {[%clk 0:02:24.3]} 18. Qh5
{[%clk 0:01:42.8]} 18... Bxe4 {[%clk 0:02:24.6]} 0-1

[Event "Early-Titled-Tuesday-Blitz-February-20-2024"]
[Site "Chess.com"]
[Date "2024.02.20"]
[Round "7"]
[White "Korchmar_Vasiliy"]
[Black "Zq1"]
[Result "1-0"]
[WhiteElo "2766"]
[BlackElo "2522"]
[TimeControl "180+1"]
[EndTime "9:15:53 PST"]
[Termination "Korchmar_Vasiliy won by resignation"]

1. e4 {[%clk 0:03:00.9]} 1... c5 {[%clk 0:02:58.3]} 2. d4 {[%clk 0:03:01.2]}
2... cxd4 {[%clk 0:02:58.2]} 3. Qxd4 {[%clk 0:03:02.1]} 3... Nc6 {[%clk
0:02:57.2]} 4. Qd3 {[%clk 0:03:02.7]} 4... g6 {[%clk 0:02:57.1]} 5. Nc3 {[%clk
0:03:03.4]} 5... Bg7 {[%clk 0:02:57.2]} 6. Nf3 {[%clk 0:03:04.1]} 6... d6 {[%clk
0:02:57.2]} 7. Be2 {[%clk 0:03:04.7]} 7... Bg4 {[%clk 0:02:55.5]} 8. O-O {[%clk
0:03:05]} 8... Nf6 {[%clk 0:02:53]} 9. Nd5 {[%clk 0:03:05.4]} 9... O-O {[%clk
0:02:46.6]} 10. c3 {[%clk 0:03:05.5]} 10... Bxf3 {[%clk 0:02:42.2]} 11. Qxf3
{[%clk 0:03:05.3]} 11... e6 {[%clk 0:02:38.3]} 12. Nxf6+ {[%clk 0:02:50.5]}
12... Qxf6 {[%clk 0:02:37.1]} 13. Qg3 {[%clk 0:02:47.3]} 13... Qe7 {[%clk
0:02:34.4]} 14. Bg5 {[%clk 0:02:43.9]} 14... Qc7 {[%clk 0:02:22.8]} 15. Rad1
{[%clk 0:02:42.9]} 15... Be5 {[%clk 0:02:14.1]} 16. f4 {[%clk 0:02:41.3]} 16...
Bg7 {[%clk 0:02:11.6]} 17. f5 {[%clk 0:02:36.7]} 17... Be5 {[%clk 0:02:03.3]}
18. Qh3 {[%clk 0:02:33]} 18... exf5 {[%clk 0:02:01.3]} 19. exf5 {[%clk
0:02:31.4]} 19... Qb6+ {[%clk 0:01:38.3]} 20. Kh1 {[%clk 0:02:30.9]} 20... Qxb2
{[%clk 0:01:38.1]} 21. f6 {[%clk 0:02:01.1]} 21... Qxc3 {[%clk 0:01:33]} 22. Qh6
{[%clk 0:01:59.9]} 1-0

[Event "Early-Titled-Tuesday-Blitz-February-20-2024"]
[Site "Chess.com"]
[Date "2024.02.20"]
[Round "7"]
[White "NovozhilovSemen"]
[Black "koncheto"]
[Result "0-1"]
[WhiteElo "2641"]
[BlackElo "2431"]
[TimeControl "180+1"]
[EndTime "9:16:00 PST"]
[Termination "koncheto won by resignation"]

1. d4 {[%clk 0:03:00.9]} 1... Nf6 {[%clk 0:02:42.5]} 2. Nf3 {[%clk 0:03:00.4]}
2... e6 {[%clk 0:02:42.6]} 3. e3 {[%clk 0:02:59.1]} 3... c5 {[%clk 0:02:34.9]}
4. Bd3 {[%clk 0:02:58.6]} 4... d5 {[%clk 0:02:35.3]} 5. b3 {[%clk 0:02:58.6]}
5... Bd6 {[%clk 0:02:33.8]} 6. Bb2 {[%clk 0:02:57.2]} 6... Qc7 {[%clk
0:02:34.1]} 7. Ne5 {[%clk 0:02:55.3]} 7... Nc6 {[%clk 0:02:32.4]} 8. f4 {[%clk
0:02:46.2]} 8... O-O {[%clk 0:02:29.5]} 9. O-O {[%clk 0:02:44.4]} 9... b6 {[%clk
0:02:29.3]} 10. a3 {[%clk 0:02:41]} 10... Bb7 {[%clk 0:02:28.3]} 11. Nd2 {[%clk
0:02:39.5]} 11... Ne7 {[%clk 0:02:23.9]} 12. c3 {[%clk 0:02:26.7]} 12... Ne4
{[%clk 0:02:20]} 13. Bxe4 {[%clk 0:02:21.9]} 13... dxe4 {[%clk 0:02:19.8]} 14.
Ndc4 {[%clk 0:02:22.4]} 14... Rfd8 {[%clk 0:02:09.7]} 15. Nxd6 {[%clk
0:02:21.2]} 15... Rxd6 {[%clk 0:02:05.5]} 16. Re1 {[%clk 0:02:06]} 16... f6
{[%clk 0:01:44]} 17. Nc4 {[%clk 0:02:00.1]} 17... Rd7 {[%clk 0:01:44]} 18. Qd2
{[%clk 0:01:59.3]} 18... b5 {[%clk 0:01:33.9]} 0-1

[Event "Early-Titled-Tuesday-Blitz-February-20-2024"]
[Site "Chess.com"]
[Date "2024.02.20"]
[Round "7"]
[White "ragnaroek66"]
[Black "OneTrickPony_82"]
[Result "1-0"]
[WhiteElo "2443"]
[BlackElo "2535"]
[TimeControl "180+1"]
[EndTime "9:16:09 PST"]
[Termination "ragnaroek66 won by resignation"]

1. d4 {[%clk 0:03:00.9]} 1... Nf6 {[%clk 0:02:59.3]} 2. c4 {[%clk 0:03:01]} 2...
e6 {[%clk 0:02:59.1]} 3. Nf3 {[%clk 0:03:01.2]} 3... d5 {[%clk 0:02:59.2]} 4. g3
{[%clk 0:03:01.3]} 4... dxc4 {[%clk 0:02:58.7]} 5. Bg2 {[%clk 0:03:01.4]} 5...
c5 {[%clk 0:02:59.3]} 6. O-O {[%clk 0:02:59.3]} 6... Nc6 {[%clk 0:02:59.6]} 7.
Qa4 {[%clk 0:02:52.1]} 7... Bd7 {[%clk 0:02:58.9]} 8. dxc5 {[%clk 0:02:43.2]}
8... Na5 {[%clk 0:02:53.1]} 9. Qc2 {[%clk 0:02:29.5]} 9... Bxc5 {[%clk
0:02:52.1]} 10. Bd2 {[%clk 0:02:25.7]} 10... Rc8 {[%clk 0:02:48.3]} 11. Ne5
{[%clk 0:02:21.2]} 11... Bb5 {[%clk 0:02:30.4]} 12. Nc3 {[%clk 0:02:08.7]} 12...
Bc6 {[%clk 0:02:19.3]} 13. Nxc6 {[%clk 0:01:47.5]} 13... Nxc6 {[%clk 0:02:18.6]}
14. Rad1 {[%clk 0:01:43.6]} 14... O-O {[%clk 0:02:09.9]} 15. Qa4 {[%clk
0:01:41.9]} 15... Qa5 {[%clk 0:01:30.5]} 16. Bxc6 {[%clk 0:01:36.5]} 1-0